Cogmind - Beta 13 X1 @@@ ROGUE MODE // 2023.07.29 @ 07:09:52 Player: maxwell Result: Destroyed by P-60 Hacker with Shock Rifle Performance ------------- Evolutions (2) 1000 Regions Visited (10) 2000 Robots Destroyed (141) 705 Value Destroyed (4711) 4711 Prototype IDs (6) 120 Alien Tech Used (0) 0 Bonus (2193) 2193 TOTAL SCORE: 10729 Bonus ------- High Alert Combat Kills 781 Follower Combat Kills 240 Entered Garrisons 400 Used RIF Installer 1000 Friendly Fire -228 Cogmind --------- Core Integrity 0/550 Matter 249/300 Energy 122/150 System Corruption 7% Temperature Cool (21) Movement Treading (240) Ox1 Location -8/Garrison Parts ------- > --- POWER (2) -------- Light Angular Momentum Engine > --- PROPULSION (3) --- Light Treads Light Treads Improved Treads > --- UTILITY (4) ------ Improved Heat Sink Advanced Heat Sink Huge Storage Unit Layered Light Armor Plating > --- WEAPON (2) ------- Wave Gun Heavy Ion Cannon > --- INVENTORY (25) --- Light Treads Light Treads Light Treads Light Treads Light Treads Armored Treads Armored Medium Treads Experimental Sensor Array Improved Signal Interpreter Layered Light Armor Plating Layered Light Armor Plating Layered Light Armor Plating Improved Powered Armor Hacking Suite System Shield Relay Coupler [NC] (26) Improved Dynamic Insulation System System Restoration Module Proton Missile Launcher Heavy Shock Bomb Launcher Improved Grenade Launcher Remote Datajack Heavy Hammer Peak State ------------ > --- POWER ------------ Improved Ion Engine Light Angular Momentum Engine > --- PROPULSION ------- Light Treads Light Treads Improved Treads > --- UTILITY ---------- Advanced Heat Sink Advanced Heat Sink Huge Storage Unit Advanced Targeting Computer > --- WEAPON ----------- Wave Gun Heavy Shock Bomb Launcher > --- INVENTORY -------- Light Treads Light Treads Light Treads Light Treads Light Treads Armored Treads Armored Medium Treads Experimental Sensor Array Improved Signal Interpreter Layered Light Armor Plating Layered Light Armor Plating Layered Light Armor Plating Layered Light Armor Plating Improved Powered Armor Hacking Suite System Shield Relay Coupler [NC] Improved Dynamic Insulation System System Restoration Module Heavy Ion Cannon Proton Missile Launcher Improved Grenade Launcher Improved Datajack Heavy Hammer [Rating: 45] Favorites ----------- Power Nuclear Core Engine Light Ion Engine Power Core Nuclear Core Propulsion Light Treads Treads Light Treads Leg Aluminum Leg Utility Huge Storage Unit Device Disposable Heat Sink Storage Huge Storage Unit Processor Improved Targeting Computer Hackware System Shield Protection Reflective Plating Weapon Beam Cannon Energy Gun Medium Laser Energy Cannon Beam Cannon Ballistic Gun Assault Rifle Launcher Grenade Launcher Impact Weapon Heavy Hammer Build | -11 -10 -10 -9 -9 -9 -8 -8 -8 -8 -8 ------- Run | Jun Mat Min Mat Min Exi Min Mat Gar Mat Gar Slots Evolved 4 | . . . 2 . . . 2 . . . Power 1 | . . . . . . . 1 . . . Propulsion 1 | . . . 1 . . . . . . . Utility 2 | . . . 1 . . . 1 . . . Weapon . | . . . . . . . . . . . Parts Attached 120 | . 11 3 18 . . 4 23 27 16 18 Power 15 | . 1 . 3 . . 1 3 3 1 3 Engine 11 | . 1 . 3 . . 1 1 2 1 2 Core 4 | . . . . . . . 2 1 . 1 Reactor . | . . . . . . . . . . . Propulsion 26 | . 2 . 4 . . 1 4 7 4 4 Treads 26 | . 2 . 4 . . 1 4 7 4 4 Leg . | . . . . . . . . . . . Wheel . | . . . . . . . . . . . Hover . | . . . . . . . . . . . Flight . | . . . . . . . . . . . Utility 43 | . 5 3 4 . . . 7 11 8 5 Device 21 | . 2 3 2 . . . 5 2 3 4 Storage 3 | . 3 . . . . . . . . . Processor 2 | . . . . . . . 1 . 1 . Hackware 4 | . . . . . . . . 3 1 . Protection 13 | . . . 2 . . . 1 6 3 1 Artifact . | . . . . . . . . . . . Weapon 36 | . 3 . 7 . . 2 9 6 3 6 Energy Gun 15 | . 2 . 2 . . . 4 4 1 2 Energy Cannon 10 | . . . 3 . . 1 4 . 1 1 Ballistic Gun 2 | . 1 . . . . . 1 . . . Ballistic Cannon . | . . . . . . . . . . . Launcher 7 | . . . 2 . . 1 . 2 . 2 Special Weapon . | . . . . . . . . . . . Impact Weapon 2 | . . . . . . . . . 1 1 Slashing Weapon . | . . . . . . . . . . . Piercing Weapon . | . . . . . . . . . . . Special Melee Weapon . | . . . . . . . . . . . Unidentified Prototypes 4 | . . 1 . . . . 3 . . . Parts Lost 31 | . 3 . 6 . . 3 1 3 7 8 Power 11 | . 1 . 2 . . 1 1 2 2 2 Propulsion 13 | . 1 . 3 . . 1 . 1 3 4 Utility 3 | . . . . . . . . . 1 2 Weapon 4 | . 1 . 1 . . 1 . . 1 . Highest Loss Streak 3 | . 2 . 2 . . 2 1 1 3 2 To Critical Strikes . | . . . . . . . . . . . Average Slot Usage (%) 98 | . 98 100 98 100 100 99 99 99 95 95 Engine 10 | . 14 14 10 11 11 10 8 3 14 11 Core 3 | . . . . . . . 9 13 . 2 Treads 27 | . 15 28 32 33 33 32 27 26 26 26 Leg 1 | . 11 . . . . . . . . . Device 11 | . 12 14 11 11 11 11 14 8 4 15 Storage 11 | . 14 14 11 11 11 11 9 9 9 9 Processor 2 | . . . . . . . 2 9 9 3 Protection 6 | . . . 11 11 11 11 9 8 6 7 Energy Gun 10 | . 20 14 9 . . . 7 11 14 8 Energy Cannon 7 | . . . 9 22 22 20 9 . 1 8 Ballistic Gun 4 | . 7 14 1 . . . . 5 . . Naked Turns . | . . . . . . . . . . . Heaviest Build 114 | 14 90 90 100 94 94 94 109 111 109 114 Greatest Support 63 | 20 40 40 60 60 60 60 60 60 60 63 Greatest Overweight (x) 2 | . 2 2 2 1 1 1 1 2 1 1 Average Overweight (x) 1 | . 1 2 1 1 1 1 1 1 1 1 Largest Inventory Capacity 25 | . 25 25 25 25 25 25 25 25 25 25 Average Capacity 24 | . 20 25 25 25 25 25 25 25 25 25 Most Carried 25 | . 22 25 25 25 25 25 25 25 25 24 Average Carried 22 | . 9 24 22 25 25 24 24 24 23 23 Final Capacity 25 | 8 25 25 25 25 25 25 25 25 25 25 Final Carried 25 | 6 22 25 25 25 25 24 25 25 22 23 Class Distribution -------------------- 66% | Mutant 33% | Scavenger-Mutant Dominant Class ---------------- Mutant | -10/Materials Mutant | -10/Mines Mutant | -9/Materials Mutant | -9/Mines Mutant | -9/Exiles Mutant | -8/Mines Scavenger-Mutant | -8/Materials Scavenger-Mutant | -8/Garrison Scavenger-Mutant | -8/Materials Scavenger-Mutant | -8/Garrison Resources | -11 -10 -10 -9 -9 -9 -8 -8 -8 -8 -8 ----------- Run | Jun Mat Min Mat Min Exi Min Mat Gar Mat Gar Matter Collected 2140 | 200 146 270 271 . . 80 190 605 130 248 Remotely . | . . . . . . . . . . . Salvage Created 4900 | . 386 69 1123 29 . 60 604 1097 873 659 Parts 270 | . 14 6 78 2 . 6 32 62 31 39 Haulers Intercepted 10 | . 2 . 3 . . . 3 . 2 . Recyclers Shooed 2 | . . . . . . 1 . . 1 . Parts Field Recycled . | . . . . . . . . . . . Retrieved Matter . | . . . . . . . . . . . Parts Self-Destructed . | . . . . . . . . . . . Prevented . | . . . . . . . . . . . Kills | -11 -10 -10 -9 -9 -9 -8 -8 -8 -8 -8 ------- Run | Jun Mat Min Mat Min Exi Min Mat Gar Mat Gar Combat Hostiles Destroyed 108 | . 7 2 25 2 . 3 11 30 10 18 Melee 5 | . . . . . . . . . 5 . Guns 46 | . 2 2 7 . . . 6 21 3 5 Cannons 20 | . . . 8 2 . . 4 . 2 4 AOE 32 | . 4 . 9 . . 3 . 8 . 8 Classes Destroyed 16 | . 5 1 3 . . . 1 3 2 1 Worker 7 | . 1 . 4 . . 2 . . . . Builder 4 | . . 1 3 . . . . . . . Hauler 10 | . 2 . 3 . . . 3 . 2 . Recycler 3 | . . . . . . . . . 3 . Mechanic 1 | . . . 1 . . . . . . . Operator 3 | . . . 1 . . . 1 . 1 . Watcher 4 | . 2 . 1 . . . . . 1 . Swarmer 30 | . 3 . 7 2 . 3 4 7 . 4 Cutter 4 | . . . . . . . . 2 . 2 Grunt 40 | . 4 2 14 . . 1 2 7 4 6 Brawler 2 | . . . . . . . 1 . 1 . Duelist 4 | . . . . . . . . 3 1 . Protector 1 | . . . . . . . . . 1 . Sentry 23 | . . . 4 . . . 4 10 2 3 Hunter 2 | . . . . . . . . 1 1 . Programmer 3 | . . . . . . . . . . 3 Best Kill Streak 13 | . 3 2 13 2 . 3 4 5 7 6 Combat Bots Only 7 | . 3 2 7 2 . 2 4 5 4 6 Max Kills in Single Turn 4 | . 3 1 4 1 . 3 1 2 2 3 Gunslinging 1 | . . . . . . . . 1 . . Exploded 3 | . 3 . 2 . . 1 . 2 . 3 Melee 1 | . . . . . . . . . 1 . Uniques/NPCs Destroyed . | . . . . . . . . . . . Combat | -11 -10 -10 -9 -9 -9 -8 -8 -8 -8 -8 -------- Run | Jun Mat Min Mat Min Exi Min Mat Gar Mat Gar Damage Taken 6212 | . 435 149 780 66 . 123 508 1268 1743 1140 Core 734 | . 54 20 86 . . 12 47 138 239 138 Absorbed by Shields 119 | . . . . . . . 111 8 . . Ignored by Resistances 124 | . . . 60 . . . 48 16 . . Regen/Repaired (Parts) 66 | . . . . . . . 66 . . . Core Remaining (%) 81 | 100 . 70 . . . 75 . . . . Volleys Fired 299 | . 30 9 59 4 . 5 37 71 31 53 Largest 2 | . 2 2 2 2 . 1 2 2 2 2 Hottest 162 | . 100 70 120 120 . 30 138 162 162 146 Shots Fired 558 | . 63 22 110 8 . 5 74 128 52 96 Gun 365 | . 63 22 44 . . . 32 117 42 45 Cannon 160 | . . . 58 8 . . 42 . 10 42 Launcher 33 | . . . 8 . . 5 . 11 . 9 Special . | . . . . . . . . . . . Kinetic 80 | . 8 11 11 . . . 3 47 . . Thermal 407 | . 47 11 69 8 . . 63 70 52 87 Explosive 28 | . . . 8 . . 5 . 11 . 4 Electromagnetic 43 | . 8 . 22 . . . 8 . . 5 Robot Hit Streak 16 | . 8 3 15 2 . 1 14 14 14 16 Robot Miss Streak 4 | . 3 3 4 1 . 1 3 2 4 2 Penetration Max . | . . . . . . . . . . . Secondary Targets 7 | . . . . . . . 2 5 . . Max Gunslinging Chain 1 | . . . . . . . 1 1 . . Shots Hit Robots 368 | . 37 8 72 5 . 1 46 78 59 62 Core Hits 199 | . 17 3 55 3 . 10 22 41 21 27 Critical Kills 2 | . . . 1 . . . . . 1 . Critical Parts Destroyed 1 | . . . . . . . . . 1 . Critical Strikes 24 | . 4 1 2 . . . 6 5 4 2 Burn 20 | . 4 1 1 . . . 6 5 1 2 Meltdown 1 | . . . 1 . . . . . . . Smash 3 | . . . . . . . . . 3 . Melee Attacks 30 | . . . . . . . . . 24 6 Impact 30 | . . . . . . . . . 24 6 Slashing . | . . . . . . . . . . . Piercing . | . . . . . . . . . . . Sneak Attacks 4 | . . . . . . . . . 4 . Combat Hostiles . | . . . . . . . . . . . Follow-up Attacks . | . . . . . . . . . . . Damage Inflicted 10406 | . 591 131 2038 96 . 439 964 2163 1871 2113 Guns 4407 | . 467 106 454 . . . 400 1519 718 743 Cannons 2442 | . . . 774 88 . . 539 . 214 827 Explosions 2529 | . 120 . 798 . . 426 25 644 . 516 Melee 933 | . . . . . . . . . 933 . Ramming 95 | . 4 25 12 8 . 13 . . 6 27 Kinetic 791 | . 50 81 92 . . . 33 535 . . Thermal 5799 | . 447 25 954 88 . . 799 984 932 1570 Explosive 1961 | . . . 535 . . 426 . 644 . 356 Electromagnetic 827 | . 90 . 445 . . . 132 . . 160 Impact 933 | . . . . . . . . . 933 . Slashing . | . . . . . . . . . . . Piercing . | . . . . . . . . . . . Highest Corruption 7 | . 7 7 . . . . . . 4 7 Average Corruption 5 | . 4 7 . . . . . . 4 4 Corruption Purged . | . . . . . . . . . . . Corruption Blocked . | . . . . . . . . . . . Effects 123 | . 28 65 . . . . . . 7 23 Message Errors 24 | . 6 13 . . . . . . 2 3 Matter Fused 42 | . 8 24 . . . . . . 3 7 Heat Flow Errors 15 | . 2 7 . . . . . . 1 5 Energy Discharges 12 | . 2 9 . . . . . . . 1 Parts Rejected 1 | . . 1 . . . . . . . . Data Loss (minor) 14 | . 4 5 . . . . . . . 5 Data Loss (major) 5 | . 3 1 . . . . . . 1 . Misfires 8 | . 3 4 . . . . . . . 1 Alerts 1 | . . 1 . . . . . . . . Weapon Failures 1 | . . . . . . . . . . 1 Overload Shots . | . . . . . . . . . . . Overflow Damage 205 | . . . 18 . . 21 18 14 57 77 Projectiles 64 | . . . . . . . 18 . 2 44 Explosions 86 | . . . 18 . . 21 . 14 . 33 Melee 55 | . . . . . . . . . 55 . Knockbacks 4 | . . . . . . . . . 4 . Impact 4 | . . . . . . . . . 4 . Kinetic . | . . . . . . . . . . . Secondary . | . . . . . . . . . . . Self-Inflicted Damage 218 | . 25 . 22 . . 94 . 50 . 27 Shots 8 | . 1 . 1 . . 3 . 2 . 1 Rammed 17 | . 1 4 1 3 . 2 . . 1 5 Targets Rammed 20 | . 2 5 2 3 . 2 . . 1 5 Kicked 1 | . 1 . . . . . . . . . Crushed 2 | . . 1 1 . . . . . . . Highest Temperature 383 | . 249 266 199 190 . . 220 338 383 359 Average Temperature 109 | . 122 94 91 107 . . 100 105 152 109 Received Heat Transfer 1715 | . 171 33 339 . . . 233 243 369 327 Effects 9 | . 1 . . . . . . . 8 . Shutdowns 1 | . . . . . . . . . 1 . Energy Bleed 1 | . 1 . . . . . . . . . Interference 7 | . . . . . . . . . 7 . Siege Activations . | . . . . . . . . . . . Robots Corrupted . | . . . . . . . . . . . Combat Hostiles . | . . . . . . . . . . . Parts Fried 8 | . 3 . 2 . . . 1 . 1 1 Impact Corruptions 4 | . . . . . . . . . 4 . Robots Melted 5 | . 1 . 1 . . . 1 1 . 1 Combat Hostiles 5 | . 1 . 1 . . . 1 1 . 1 Parts Melted 35 | . 2 . 10 . . . 11 5 2 5 Heat Transferred 11556 | . 1358 148 2048 185 . . 2122 2072 1443 2180 Parts Sabotaged . | . . . . . . . . . . . Parts Stolen . | . . . . . . . . . . . Parts Stripped . | . . . . . . . . . . . Power Chain Reactions 4 | . 2 . . . . . 1 . . 1 Missiles Intercepted . | . . . . . . . . . . . Alert | -11 -10 -10 -9 -9 -9 -8 -8 -8 -8 -8 ------- Run | Jun Mat Min Mat Min Exi Min Mat Gar Mat Gar Peak Influence 1628 | . 180 34 617 240 . 129 262 1628 876 641 Initial 793 | . . 12 . 240 . . . 92 793 336 Average 290 | . 61 5 213 100 . 32 119 805 711 462 Maximum Alert Level 5 | . . . 2 1 . . 1 5 3 2 Low Security (%) 59 | . 100 100 65 72 . 100 76 3 . . Level 1 10 | . . . 12 27 . . 23 10 . 29 Level 2 16 | . . . 21 . . . . 30 51 70 Level 3 9 | . . . . . . . . 32 48 . Level 4 4 | . . . . . . . . 20 . . Level 5 . | . . . . . . . . 3 . . High Security . | . . . . . . . . . . . Max Security . | . . . . . . . . . . . Squads Dispatched 10 | . 1 . 5 . . . . . 4 . Investigation 3 | . . . 2 . . . . . 1 . Extermination . | . . . . . . . . . . . Reinforcement 6 | . 1 . 3 . . . . . 2 . Assault 1 | . . . . . . . . . 1 . Garrison . | . . . . . . . . . . . Intercept . | . . . . . . . . . . . Searches Triggered . | . . . . . . . . . . . Construction Impeded 1 | . . . 1 . . . . . . . Haulers Reinforced . | . . . . . . . . . . . Active Scanning Responses . | . . . . . . . . . . . Cargo Convoy Interrupts . | . . . . . . . . . . . Stealth | -11 -10 -10 -9 -9 -9 -8 -8 -8 -8 -8 --------- Run | Jun Mat Min Mat Min Exi Min Mat Gar Mat Gar Distress Signals 2 | . . . 1 . . . . . 1 . Communications Jammed . | . . . . . . . . . . . Distress Signals . | . . . . . . . . . . . Times Spotted 152 | . 14 4 35 4 . 7 16 30 20 22 Peak Tracking Total 6 | . 3 1 5 3 . 4 3 5 6 6 Tactical Retreats 7 | . . . 2 . . . . . 3 2 Traps | -11 -10 -10 -9 -9 -9 -8 -8 -8 -8 -8 ------- Run | Jun Mat Min Mat Min Exi Min Mat Gar Mat Gar Traps Triggered 19 | . 4 . 1 . . . . 8 1 5 Indirectly 2 | . . . 1 . . . . . . 1 Trap Hack Attempts . | . . . . . . . . . . . Triggered . | . . . . . . . . . . . Disarmed . | . . . . . . . . . . . Reprogrammed 4 | . 4 . . . . . . . . . Reused 3 | . 3 . . . . . . . . . Traps Extracted . | . . . . . . . . . . . Installed . | . . . . . . . . . . . Triggered 3 | . 3 . . . . . . . . . Machines | -11 -10 -10 -9 -9 -9 -8 -8 -8 -8 -8 ---------- Run | Jun Mat Min Mat Min Exi Min Mat Gar Mat Gar Machines Disabled 16 | . 2 . 7 . . . . 6 . 1 Max in Single Turn 3 | . 1 . 3 . . . . 2 . 1 Garrison Relay 4 | . . . . . . . . 3 . 1 Phase Generator 1 | . . . . . . . . 1 . . Machines Repaired . | . . . . . . . . . . . Machines Sabotaged . | . . . . . . . . . . . Overloaded Fab Kills . | . . . . . . . . . . . Hacking | -11 -10 -10 -9 -9 -9 -8 -8 -8 -8 -8 --------- Run | Jun Mat Min Mat Min Exi Min Mat Gar Mat Gar Machines Accessed 25 | . 6 . 4 . 1 . 4 4 4 2 Terminals 20 | . 6 . 3 . . . 2 4 3 2 Fabricators . | . . . . . . . . . . . Repair Stations 1 | . . . . . . . 1 . . . Recycling Units . | . . . . . . . . . . . Scanalyzers 1 | . . . 1 . . . . . . . Garrison Access 2 | . . . . . . . 1 . 1 . Total Hacks 62 | . 15 . 13 . 1 . 11 7 12 3 Successful 28 | . 9 . 5 . 1 . 6 4 2 1 Failed 33 | . 5 . 8 . . . 5 3 10 2 Catastrophic 5 | . 1 . . . . . . . 3 1 Database Lockouts 1 | . 1 . . . . . . . . . Manual 33 | . 12 . 5 . . . 5 . 11 . Terminals 52 | . 15 . 10 . . . 6 7 11 3 Fabricators . | . . . . . . . . . . . Repair Stations 3 | . . . . . . . 3 . . . Recycling Units . | . . . . . . . . . . . Scanalyzers 3 | . . . 3 . . . . . . . Garrison Access 3 | . . . . . . . 2 . 1 . Terminal Hacks 13 | . 5 . . . 1 . 1 4 1 1 Record 1 | . . . . . 1 . . . . . Robot Analysis 1 | . 1 . . . . . . . . . Prototype ID Bank 1 | . 1 . . . . . . . . . Open Door 2 | . . . . . . . . 1 . 1 Branch Access Points 1 | . 1 . . . . . . . . . Emergency Access Points 1 | . . . . . . . . 1 . . Terminal Index 1 | . . . . . . . 1 . . . Unreport Threat 1 | . . . . . . . . . 1 . Locate Traps 1 | . 1 . . . . . . . . . Reprogram Traps 1 | . 1 . . . . . . . . . Garrison Registry 1 | . . . . . . . . 1 . . Security Stations 1 | . . . . . . . . 1 . . Fabricator Hacks . | . . . . . . . . . . . Repair Station Hacks 2 | . . . . . . . 2 . . . Scan Component 1 | . . . . . . . 1 . . . Repair 1 | . . . . . . . 1 . . . Recycling Unit Hacks . | . . . . . . . . . . . Scanalyzer 3 | . . . 3 . . . . . . . Insert Component 1 | . . . 1 . . . . . . . Analyze 2 | . . . 2 . . . . . . . Garrison Access Hacks 2 | . . . . . . . 1 . 1 . Unlock Access 2 | . . . . . . . 1 . 1 . Unauthorized Hacks 8 | . 4 . 2 . . . 2 . . . Terminals 8 | . 4 . 2 . . . 2 . . . Botnet 5 | . 3 . 1 . . . 1 . . . Operators 3 | . 1 . 1 . . . 1 . . . Fabricators . | . . . . . . . . . . . Repair Stations . | . . . . . . . . . . . Recycling Units . | . . . . . . . . . . . Scanalyzers . | . . . . . . . . . . . Garrison Access . | . . . . . . . . . . . Data Cores Recovered 1 | . . . . . . . 1 . . . Used . | . . . . . . . . . . . Hacking Detections 22 | . 5 . 4 . . . 4 3 4 2 Full Trace Events 2 | . . . 2 . . . . . . . Feedback Events . | . . . . . . . . . . . Feedback Blocked . | . . . . . . . . . . . Robot Schematics Acquired . | . . . . . . . . . . . Robots Built . | . . . . . . . . . . . Authchips . | . . . . . . . . . . . Time . | . . . . . . . . . . . Total Robot Build Rating . | . . . . . . . . . . . Part Schematics Acquired 1 | . . . 1 . . . . . . . Parts Built . | . . . . . . . . . . . Authchips . | . . . . . . . . . . . Time . | . . . . . . . . . . . Total Part Build Rating . | . . . . . . . . . . . Parts Repaired 1 | . . . . . . . 1 . . . Time 26 | . . . . . . . 26 . . . Parts Recycled . | . . . . . . . . . . . Recycled Matter . | . . . . . . . . . . . Retrieved Matter . | . . . . . . . . . . . Retrieved Components . | . . . . . . . . . . . Parts Scanalyzed 1 | . . . 1 . . . . . . . Part Schematics Acquired 1 | . . . 1 . . . . . . . Parts Damaged . | . . . . . . . . . . . Bothacking | -11 -10 -10 -9 -9 -9 -8 -8 -8 -8 -8 ------------ Run | Jun Mat Min Mat Min Exi Min Mat Gar Mat Gar Used RIF Installer 2 | . . . . . . . . 2 . . Threat Obfuscator 1 | . . . . . . . . 1 . . Robots Hacked . | . . . . . . . . . . . Non-combat . | . . . . . . . . . . . Combat . | . . . . . . . . . . . Robot Hacks Applied . | . . . . . . . . . . . Relay Couplers Released 17 | . . . . . . . . 12 . 5 Machine Destruction 17 | . . . . . . . . 12 . 5 Attached 2 | . . . . . . . . 2 . . Fabnet Peak Effective % . | . . . . . . . . . . . Robots Rewired . | . . . . . . . . . . . Allies Hacked . | . . . . . . . . . . . Hacks Repelled . | . . . . . . . . . . . Allies | -11 -10 -10 -9 -9 -9 -8 -8 -8 -8 -8 -------- Run | Jun Mat Min Mat Min Exi Min Mat Gar Mat Gar Total Allies 8 | . . 2 . 3 . . . 1 . 2 Largest Group 3 | . . 2 1 3 3 3 1 1 . 2 Highest-Rated Group 51 | . . 42 31 40 40 40 16 31 . 51 Highest-Rated Ally 31 | . . 31 31 16 16 16 16 31 . 31 Total Orders . | . . . . . . . . . . . Ally Attacks 73 | . . 2 8 7 . 10 27 9 . 10 Total Damage 1036 | . . 43 63 78 . 86 337 144 . 285 Kills 12 | . . . . 2 . 4 5 . . 1 Allies Corrupted . | . . . . . . . . . . . Allies Melted . | . . . . . . . . . . . Intel | -11 -10 -10 -9 -9 -9 -8 -8 -8 -8 -8 ------- Run | Jun Mat Min Mat Min Exi Min Mat Gar Mat Gar Robot Analysis Total 1 | . 1 . . . . . . . . . Derelict Logs Recovered 2 | . . 1 . 1 . . . . . . Drone Launches . | . . . . . . . . . . . Drone Recoveries . | . . . . . . . . . . . Exploration | -11 -10 -10 -9 -9 -9 -8 -8 -8 -8 -8 ------------- Run | Jun Mat Min Mat Min Exi Min Mat Gar Mat Gar Turns Passed 14773 | . 1886 2423 1126 1445 339 1497 1150 2952 818 1137 Spaces Moved 5243 | 1 694 691 364 592 142 616 392 1118 255 378 Core . | . . . . . . . . . . . Treads 4958 | . 410 691 364 592 142 616 392 1118 255 378 Legs 285 | 1 284 . . . . . . . . . Wheels . | . . . . . . . . . . . Hover . | . . . . . . . . . . . Flight . | . . . . . . . . . . . Fastest Speed 120 | 120 120 320 240 240 240 240 240 240 240 240 Average Speed 252 | 120 250 320 241 240 240 240 240 240 240 240 Slowest Speed 320 | 120 320 320 320 240 240 240 240 320 240 240 Overloaded Moves . | . . . . . . . . . . . Propulsion Burnouts . | . . . . . . . . . . . Robots Hopped . | . . . . . . . . . . . Cave-ins Triggered . | . . . . . . . . . . . Exploration Rate (%) 62 | 2 96 98 43 99 53 99 33 81 29 58 Regions Visited 10 Branch Regions 4 Pre-discovered Areas 2 | . . . . 1 1 . . . . . Known Exits Taken 3 | . 1 . . . . . 1 . 1 . Unknown Exits Taken 6 | 1 . 1 1 1 1 1 . . . . Scrap Searched 3 | . . 1 . 1 . 1 . . . . Spaces Dug 20 | . . . . . . 8 . 8 . 4 Terrain Destroyed 283 | . 2 . 77 . . 38 2 127 9 28 Melee 4 | . . . . . . . . . . 4 Projectile 9 | . . . . . . . . . 9 . AOE 270 | . 2 . 77 . . 38 2 127 . 24 Terrain Rammed . | . . . . . . . . . . . Walls Destroyed . | . . . . . . . . . . . Machines Disabled . | . . . . . . . . . . . Actions | -11 -10 -10 -9 -9 -9 -8 -8 -8 -8 -8 --------- Run | Jun Mat Min Mat Min Exi Min Mat Gar Mat Gar Total 6226 | . 781 877 501 605 141 627 530 1292 372 500 Wait 305 | . 12 157 17 7 . . 46 13 33 20 Move 5236 | . 693 690 364 591 141 615 392 1117 255 378 Hop . | . . . . . . . . . . . Pick Up 96 | . 25 8 17 . . 1 13 18 6 8 Fast Attach 41 | . 2 1 5 . . 1 10 12 5 5 Attach 41 | . 6 . 8 . . 2 8 6 5 6 Detach 6 | . . . . . . . 1 4 . 1 Swap 38 | . 3 2 5 . . 1 5 9 6 7 Drop 80 | . 8 5 14 . . . 18 26 6 3 Fire 299 | . 30 9 59 4 . 5 37 71 31 53 Melee 30 | . . . . . . . . . 24 6 Ram . | . . . . . . . . . . . Kick 1 | . 1 . . . . . . . . . Crush 18 | . 1 5 1 3 . 2 . . 1 5 Escape Stasis 24 | . . . . . . . . 16 . 8 Rewire 11 | . . . 11 . . . . . . . Trap . | . . . . . . . . . . . Miscellaneous . | . . . . . . . . . . . Route ------- -11/Junkyard -10/Materials (discovered 5 exits: *Mat x3 / *Min x2) -10/Mines (discovered 3 exits: *Mat x2 / [*Sub]) -9/Materials (discovered 5 exits: *Mat / [*Min x2] / *Sto x2) -9/Mines (discovered 4 exits: *Mat x2 / *Exi / [*Zio]) -9/Exiles -8/Mines (discovered 2 exits: *Mat x2) -8/Materials (discovered 2 exits: [*Fac] / Gar) -8/Garrison (discovered 3 exits: *Mat x3) -8/Materials (discovered 2 exits: [*Fac] / Gar) -8/Garrison (discovered 2 exits: [*Fac x2]) History --------- Turn | Location | Event 1 | -11/Junkyard | Discovered new exit (range 0) 1 | -11/Junkyard | Entered Materials 322 | -10/Materials | Build established: Mutant 330 | -10/Materials | Identified exit to Mines 353 | -10/Materials | Discovered new exit (range 4) 684 | -10/Materials | Discovered new exit (range 11) 734 | -10/Materials | Central database locked down 1032 | -10/Materials | Discovered new exit (range 8) 1887 | -10/Materials | Entered Mines 1897 | -10/Mines | Joined a pair of Derelicts in attacking an 0b10 outpost 1981 | -10/Mines | Discovered new exit (range 7) 2007 | -10/Mines | Assembled infested the area 2505 | -10/Mines | Discovered new exit (range 8) 2818 | -10/Mines | Found a damaged Exp. Sensor Array with a note attached 2825 | -10/Mines | Found Prototype Device 2865 | -10/Mines | Identified Exp. Sensor Array 3351 | -10/Mines | Learned 2 Materials zone layouts 3414 | -10/Mines | Discovered new exit (range 5) 4310 | -10/Mines | Entered Materials 4310 | -9/Materials | Accompanied by 1 ally 4310 | -9/Materials | Evolved 2 slots: Propulsion x1, Utility x1 4311 | -9/Materials | Identified exit to Storage 4315 | -9/Materials | Led the pair of lost Derelicts to an unsafe place 4345 | -9/Materials | Discovered new exit (range 15) 4766 | -9/Materials | Discovered new exit (range 9) 5033 | -9/Materials | Discovered exit to Storage (range 11) 5201 | -9/Materials | Discovered new exit (range 16) 5211 | -9/Materials | Destroyed 7 combat bots 5436 | -9/Materials | Entered Mines 5457 | -9/Mines | Met a Derelict bent on vengeance 5468 | -9/Mines | Discovered new exit (range 9) 5470 | -9/Mines | Assisted by bots powering up and referring to "LRC-V3" 5516 | -9/Mines | Learned Materials terminal intel 5555 | -9/Mines | Learned location of Storage (-9) 5718 | -9/Mines | A Derelict revealed a hidden shortcut to a safe place 6355 | -9/Mines | Deemed a non-threat by the Exiles lab entrance 6355 | -9/Mines | Discovered new exit (range 5) 6495 | -9/Mines | Discovered new exit (range 9) 6881 | -9/Mines | Entered Exiles 6881 | -9/Exiles | Accompanied by 3 allies 6939 | -9/Exiles | Met 8R-AWN 6982 | -9/Exiles | Met EX-HEX 7088 | -9/Exiles | Met EX-DEC 7126 | -9/Exiles | Learned location of Zion (-7) 7198 | -9/Exiles | Discovered new exit (range 11) 7220 | -9/Exiles | Entered Mines 7220 | -8/Mines | Accompanied by 3 allies 7835 | -8/Mines | Discovered new exit (range 13) 8470 | -8/Mines | Discovered new exit (range 12) 8717 | -8/Mines | Entered Materials 8717 | -8/Materials | Accompanied by 1 ally 8717 | -8/Materials | Evolved 2 slots: Power x1, Utility x1 8718 | -8/Materials | Loaded intel: 12 terminal locations 9026 | -8/Materials | Repaired Beam Cannon 9241 | -8/Materials | Build established: Scavenger-Mutant 9568 | -8/Materials | Discovered new exit (range 6) 9867 | -8/Materials | Identified exit to Garrison 9867 | -8/Materials | Entered Garrison 10037 | -8/Garrison | Phase Generator disabled 10092 | -8/Garrison | Triggered checkpoint 10120 | -8/Garrison | Build established: Mutant 10134 | -8/Garrison | Learned Materials security intel 10260 | -8/Garrison | Triggered checkpoint 10386 | -8/Garrison | Discovered new exit (range 10) 10543 | -8/Garrison | Installed Relay Interface Framework 11063 | -8/Garrison | Build established: Scavenger-Mutant 11152 | -8/Garrison | Triggered checkpoint 11230 | -8/Garrison | Triggered checkpoint 11381 | -8/Garrison | Discovered new exit (range 8) 11420 | -8/Garrison | Discovered new exit (range 61) 11420 | -8/Garrison | Discovered new exit (range 60) 11420 | -8/Garrison | Discovered new exit (range 7) 11537 | -8/Garrison | Triggered checkpoint 11614 | -8/Garrison | Expanded RIF knowledge: Threat Obfuscation 11844 | -8/Garrison | Found Imp. Powered Armor 11970 | -8/Garrison | Garrison Relay disabled 12137 | -8/Garrison | Garrison Relay disabled 12255 | -8/Garrison | Rescued a captive Derelict 12343 | -8/Garrison | Garrison Relay disabled 12568 | -8/Garrison | Triggered checkpoint 12819 | -8/Garrison | Entered Materials 13219 | -8/Materials | First assault squad dispatched 13371 | -8/Materials | Core integrity fell below 50% 13427 | -8/Materials | Lost 3 parts (2n1u) 13606 | -8/Materials | Discovered new exit (range 15) 13637 | -8/Materials | Identified exit to Garrison 13637 | -8/Materials | Entered Garrison 13696 | -8/Garrison | Triggered checkpoint 13757 | -8/Garrison | Rescued a captive Derelict 13757 | -8/Garrison | Rescued a captive Derelict 13798 | -8/Garrison | Garrison Relay disabled 13874 | -8/Garrison | Core integrity fell below 20% 13975 | -8/Garrison | Triggered checkpoint 14100 | -8/Garrison | Triggered checkpoint 14204 | -8/Garrison | Discovered new exit (range 13) 14505 | -8/Garrison | Triggered checkpoint 14656 | -8/Garrison | Discovered new exit (range 8) 14774 | -8/Garrison | Destroyed by P-60 Hacker with Shock Rifle Last Messages --------------- 14550_ Acquired 3 matter. 14553_ System corrupted: Energy discharge (-57). 14556_ The unstable cave ceiling collapses. 14556_ Flight Unit crushed. 14557_ Acquired 9 matter. 14571_ The unstable cave ceiling collapses. 14571_ Flight Unit crushed. 14573_ The unstable cave ceiling collapses. 14585_ QP JJ|5ZY/